[Event "Late-Titled-Tuesday-Blitz-October-10-2023"]
[Site "Chess.com"]
[Date "2023.10.10"]
[Round "7"]
[White "UK_23"]
[Black "HajiyevKanan"]
[Result "1-0"]
[WhiteElo "2396"]
[BlackElo "2552"]
[TimeControl "180+1"]
[EndTime "15:12:18 PDT"]
[Termination "UK_23 won by checkmate"]

1. e4 {[%clk 0:02:55.3]} 1... c6 {[%clk 0:02:32.5]} 2. Nc3 {[%clk 0:02:53.5]}
2... d5 {[%clk 0:02:33.4]} 3. Nf3 {[%clk 0:02:54]} 3... a6 {[%clk 0:02:34.1]} 4.
d4 {[%clk 0:02:53.4]} 4... Bg4 {[%clk 0:02:33.1]} 5. exd5 {[%clk 0:02:46.2]}
5... cxd5 {[%clk 0:02:34]} 6. h3 {[%clk 0:02:46.8]} 6... Bh5 {[%clk 0:02:33.9]}
7. g4 {[%clk 0:02:47.3]} 7... Bg6 {[%clk 0:02:34.5]} 8. Ne5 {[%clk 0:02:48]}
8... Nc6 {[%clk 0:02:35.3]} 9. h4 {[%clk 0:02:47.4]} 9... Nxe5 {[%clk
0:02:33.4]} 10. dxe5 {[%clk 0:02:47.8]} 10... h5 {[%clk 0:02:34.1]} 11. Qxd5
{[%clk 0:02:27.2]} 11... Qxd5 {[%clk 0:02:32.1]} 12. Nxd5 {[%clk 0:02:28.1]}
12... O-O-O {[%clk 0:02:32.6]} 13. Nf4 {[%clk 0:02:20.5]} 13... Be4 {[%clk
0:02:19.9]} 14. Rh3 {[%clk 0:02:11.6]} 14... hxg4 {[%clk 0:02:19.8]} 15. Rc3+
{[%clk 0:02:11.4]} 15... Kb8 {[%clk 0:02:19.7]} 16. h5 {[%clk 0:02:02.7]} 16...
e6 {[%clk 0:02:16.4]} 17. a3 {[%clk 0:02:02.2]} 17... Ne7 {[%clk 0:02:14.5]} 18.
Be3 {[%clk 0:02:00.6]} 18... Nd5 {[%clk 0:02:12.2]} 19. Nxd5 {[%clk 0:01:59.9]}
19... Rxd5 {[%clk 0:02:11.1]} 20. Bc4 {[%clk 0:01:57.2]} 20... Rxe5 {[%clk
0:01:46.4]} 21. Bf4 {[%clk 0:01:57.1]} 21... Bd6 {[%clk 0:01:47.1]} 22. O-O-O
{[%clk 0:01:31.7]} 22... Bc7 {[%clk 0:01:41.5]} 23. Bxe5 {[%clk 0:01:23.8]}
23... Bxe5 {[%clk 0:01:42.4]} 24. Rb3 {[%clk 0:01:24.5]} 24... Kc7 {[%clk
0:01:27.5]} 25. Be2 {[%clk 0:01:14.7]} 25... Bf5 {[%clk 0:01:18.1]} 26. Rh1
{[%clk 0:01:10.4]} 26... g6 {[%clk 0:01:14.7]} 27. h6 {[%clk 0:01:10.3]} 27...
Bf4+ {[%clk 0:01:15]} 28. Kb1 {[%clk 0:01:10.9]} 28... Rxh6 {[%clk 0:01:11]} 29.
Rxh6 {[%clk 0:01:10.4]} 29... Bxh6 {[%clk 0:01:11.9]} 30. Rb4 {[%clk 0:01:07.8]}
30... Bd2 {[%clk 0:01:08.3]} 31. Rc4+ {[%clk 0:00:58.1]} 31... Kd6 {[%clk
0:01:08.4]} 32. Rd4+ {[%clk 0:00:54.8]} 32... Ke5 {[%clk 0:01:08.3]} 33. Rxd2
{[%clk 0:00:55.7]} 33... Kf4 {[%clk 0:01:07]} 34. Rd4+ {[%clk 0:00:55]} 34...
Be4 {[%clk 0:01:03.6]} 35. Bxg4 {[%clk 0:00:49.3]} 35... e5 {[%clk 0:01:02.5]}
36. Rxe4+ {[%clk 0:00:21.7]} 36... Kxe4 {[%clk 0:01:03.4]} 37. Bc8 {[%clk
0:00:22.3]} 37... Kf3 {[%clk 0:00:59.3]} 38. Bxb7+ {[%clk 0:00:22.5]} 38... Kxf2
{[%clk 0:01:00]} 39. Bxa6 {[%clk 0:00:22.5]} 39... g5 {[%clk 0:00:59.6]} 40. Bc8
{[%clk 0:00:20.9]} 40... e4 {[%clk 0:00:59.9]} 41. a4 {[%clk 0:00:20.7]} 41...
e3 {[%clk 0:01:00.1]} 42. Bg4 {[%clk 0:00:20.7]} 42... f5 {[%clk 0:00:55]} 43.
Bd1 {[%clk 0:00:18.3]} 43... g4 {[%clk 0:00:49.4]} 44. a5 {[%clk 0:00:18.2]}
44... g3 {[%clk 0:00:50.1]} 45. a6 {[%clk 0:00:18.5]} 45... g2 {[%clk
0:00:50.8]} 46. a7 {[%clk 0:00:18.4]} 46... g1=Q {[%clk 0:00:51.7]} 47. a8=Q
{[%clk 0:00:18.8]} 47... Qxd1+ {[%clk 0:00:51.6]} 48. Ka2 {[%clk 0:00:19.6]}
48... f4 {[%clk 0:00:45.6]} 49. Qf8 {[%clk 0:00:15.8]} 49... f3 {[%clk
0:00:44.1]} 50. Qh6 {[%clk 0:00:15.5]} 50... e2 {[%clk 0:00:41.3]} 51. Qh4+
{[%clk 0:00:15.3]} 51... Ke3 {[%clk 0:00:41.9]} 52. Qh6+ {[%clk 0:00:14.8]}
52... Kf2 {[%clk 0:00:41.1]} 53. Qh2+ {[%clk 0:00:14.7]} 53... Ke1 {[%clk
0:00:41.4]} 54. Qg1+ {[%clk 0:00:14.5]} 54... Kd2 {[%clk 0:00:42]} 55. Qd4+
{[%clk 0:00:15.2]} 55... Kxc2 {[%clk 0:00:42]} 56. Qc3# {[%clk 0:00:15.4]} 1-0

[Event "Late-Titled-Tuesday-Blitz-October-10-2023"]
[Site "Chess.com"]
[Date "2023.10.10"]
[Round "7"]
[White "GoltsevDmitry2000"]
[Black "Alexander_Donchenko"]
[Result "0-1"]
[WhiteElo "2714"]
[BlackElo "2877"]
[TimeControl "180+1"]
[EndTime "15:12:21 PDT"]
[Termination "Alexander_Donchenko won by checkmate"]

1. e4 {[%clk 0:02:58.4]} 1... c6 {[%clk 0:02:19.3]} 2. d4 {[%clk 0:02:57.2]}
2... d5 {[%clk 0:02:20.2]} 3. Nc3 {[%clk 0:02:57.3]} 3... dxe4 {[%clk
0:02:20.3]} 4. Nxe4 {[%clk 0:02:58.2]} 4... Bf5 {[%clk 0:02:20.6]} 5. Ng3 {[%clk
0:02:57.8]} 5... Bg6 {[%clk 0:02:21.2]} 6. Nh3 {[%clk 0:02:58.2]} 6... Nf6
{[%clk 0:02:20.7]} 7. Nf4 {[%clk 0:02:58.6]} 7... e5 {[%clk 0:02:21]} 8. dxe5
{[%clk 0:02:57.4]} 8... Qa5+ {[%clk 0:02:21.3]} 9. c3 {[%clk 0:02:56.3]} 9...
Qxe5+ {[%clk 0:02:21.8]} 10. Qe2 {[%clk 0:02:56.8]} 10... Nbd7 {[%clk
0:02:21.6]} 11. Qxe5+ {[%clk 0:02:55.2]} 11... Nxe5 {[%clk 0:02:22.5]} 12. h3
{[%clk 0:02:55.2]} 12... Bc5 {[%clk 0:02:21.6]} 13. Be2 {[%clk 0:02:49]} 13...
O-O-O {[%clk 0:02:20.6]} 14. O-O {[%clk 0:02:46.9]} 14... Rhe8 {[%clk
0:02:20.4]} 15. Nxg6 {[%clk 0:02:45.2]} 15... hxg6 {[%clk 0:02:20.1]} 16. Bg5
{[%clk 0:02:44.9]} 16... Nd3 {[%clk 0:02:16.7]} 17. b4 {[%clk 0:02:32.7]} 17...
Bb6 {[%clk 0:02:14.3]} 18. Rad1 {[%clk 0:02:29.8]} 18... Nb2 {[%clk 0:01:55.4]}
19. Rxd8+ {[%clk 0:02:22.4]} 19... Kxd8 {[%clk 0:01:55.3]} 20. Bf3 {[%clk
0:02:15.2]} 20... Kc8 {[%clk 0:01:45.1]} 21. Bxf6 {[%clk 0:01:31.8]} 21... gxf6
{[%clk 0:01:46]} 22. Ne4 {[%clk 0:01:32.2]} 22... Re6 {[%clk 0:01:46.1]} 23. Rb1
{[%clk 0:00:45]} 23... Nd3 {[%clk 0:01:45.9]} 24. Rd1 {[%clk 0:00:39.7]} 24...
Rxe4 {[%clk 0:01:45.6]} 25. Rxd3 {[%clk 0:00:39.4]} 25... Re1+ {[%clk
0:01:45.5]} 26. Kh2 {[%clk 0:00:40]} 26... Bxf2 {[%clk 0:01:45.9]} 27. Rd6
{[%clk 0:00:20.3]} 27... Re6 {[%clk 0:01:15.6]} 28. Rxe6 {[%clk 0:00:20.1]}
28... fxe6 {[%clk 0:01:16.5]} 29. c4 {[%clk 0:00:16.9]} 29... b5 {[%clk
0:01:06.4]} 30. cxb5 {[%clk 0:00:14.6]} 30... cxb5 {[%clk 0:01:07.3]} 31. Bc6
{[%clk 0:00:09.5]} 31... a6 {[%clk 0:01:07]} 32. a4 {[%clk 0:00:10.1]} 32...
bxa4 {[%clk 0:01:06.4]} 33. Bxa4 {[%clk 0:00:10.7]} 33... Be1 {[%clk 0:01:05.8]}
34. b5 {[%clk 0:00:10]} 34... a5 {[%clk 0:01:06.2]} 35. g4 {[%clk 0:00:08]}
35... Kc7 {[%clk 0:01:02.7]} 36. Kg2 {[%clk 0:00:08.6]} 36... Kb6 {[%clk
0:00:57.7]} 37. Kf3 {[%clk 0:00:09.2]} 37... Kc5 {[%clk 0:00:57.3]} 38. Ke4
{[%clk 0:00:08.9]} 38... Bf2 {[%clk 0:00:56.3]} 39. Kf3 {[%clk 0:00:05.7]} 39...
Bg1 {[%clk 0:00:55.7]} 40. h4 {[%clk 0:00:05.4]} 40... Kb4 {[%clk 0:00:49.5]}
41. Bc2 {[%clk 0:00:05]} 41... a4 {[%clk 0:00:40.1]} 42. Bxg6 {[%clk 0:00:01.9]}
42... a3 {[%clk 0:00:40.7]} 43. Bb1 {[%clk 0:00:02.4]} 43... Kb3 {[%clk
0:00:41.4]} 44. h5 {[%clk 0:00:02.9]} 44... Kb2 {[%clk 0:00:42]} 45. h6 {[%clk
0:00:03.1]} 45... Kxb1 {[%clk 0:00:42.6]} 46. h7 {[%clk 0:00:03.8]} 46... a2
{[%clk 0:00:43.3]} 47. h8=Q {[%clk 0:00:04.3]} 47... a1=Q {[%clk 0:00:44.1]} 48.
Qe8 {[%clk 0:00:02.5]} 48... Qc3+ {[%clk 0:00:42.8]} 49. Kg2 {[%clk 0:00:03.1]}
49... Qe3 {[%clk 0:00:37.3]} 50. Qc6 {[%clk 0:00:03.8]} 50... Qf2+ {[%clk
0:00:36.7]} 51. Kh3 {[%clk 0:00:04.1]} 51... Qh2# {[%clk 0:00:37.6]} 0-1

[Event "Late-Titled-Tuesday-Blitz-October-10-2023"]
[Site "Chess.com"]
[Date "2023.10.10"]
[Round "7"]
[White "WPWPWP-2015"]
[Black "cassoulet"]
[Result "1/2-1/2"]
[WhiteElo "2541"]
[BlackElo "2758"]
[TimeControl "180+1"]
[EndTime "15:12:22 PDT"]
[Termination "Game drawn by repetition"]

1. d4 {[%clk 0:02:59.7]} 1... Nf6 {[%clk 0:02:58]} 2. Nf3 {[%clk 0:02:58.5]}
2... g6 {[%clk 0:02:57.9]} 3. g3 {[%clk 0:02:58.7]} 3... Bg7 {[%clk 0:02:58.2]}
4. Bg2 {[%clk 0:02:59.2]} 4... O-O {[%clk 0:02:58.8]} 5. O-O {[%clk 0:02:59.7]}
5... d5 {[%clk 0:02:59.4]} 6. Nbd2 {[%clk 0:02:59.3]} 6... c6 {[%clk 0:02:56.9]}
7. Re1 {[%clk 0:02:59.3]} 7... Bf5 {[%clk 0:02:56.7]} 8. Nh4 {[%clk 0:02:58.9]}
8... Be6 {[%clk 0:02:54.7]} 9. a4 {[%clk 0:02:56.8]} 9... Qc8 {[%clk 0:02:53.9]}
10. Nhf3 {[%clk 0:02:53.8]} 10... Bh3 {[%clk 0:02:52.1]} 11. Bh1 {[%clk
0:02:53.4]} 11... c5 {[%clk 0:02:50.8]} 12. e3 {[%clk 0:02:27.6]} 12... Bg4
{[%clk 0:02:36.1]} 13. c3 {[%clk 0:02:24.3]} 13... Nbd7 {[%clk 0:02:34.4]} 14.
a5 {[%clk 0:02:23.3]} 14... e5 {[%clk 0:02:28.8]} 15. Qb3 {[%clk 0:01:54.4]}
15... exd4 {[%clk 0:02:20.8]} 16. cxd4 {[%clk 0:01:50.8]} 16... c4 {[%clk
0:02:12.3]} 17. Qa3 {[%clk 0:01:39.7]} 17... Re8 {[%clk 0:02:12.1]} 18. Nf1
{[%clk 0:01:28.4]} 18... Bf8 {[%clk 0:02:10.1]} 19. Qa4 {[%clk 0:01:23.3]} 19...
Ne4 {[%clk 0:02:04.6]} 20. Bd2 {[%clk 0:01:22.7]} 20... Ndf6 {[%clk 0:01:59.9]}
21. Ne5 {[%clk 0:01:15.8]} 21... Bh3 {[%clk 0:01:33.1]} 22. f3 {[%clk
0:01:12.7]} 22... Nxd2 {[%clk 0:00:54.5]} 23. Nxd2 {[%clk 0:01:12.4]} 23... Nd7
{[%clk 0:00:55.2]} 24. f4 {[%clk 0:01:06.1]} 24... Nxe5 {[%clk 0:00:52.5]} 25.
fxe5 {[%clk 0:01:01.1]} 25... c3 {[%clk 0:00:45.1]} 26. bxc3 {[%clk 0:00:49.6]}
26... Qxc3 {[%clk 0:00:46]} 27. Nb3 {[%clk 0:00:33.7]} 27... Bh6 {[%clk
0:00:42.8]} 28. Kf2 {[%clk 0:00:25.4]} 28... Rac8 {[%clk 0:00:33.5]} 29. Rac1
{[%clk 0:00:17.8]} 29... Qd3 {[%clk 0:00:21.8]} 30. Qa2 {[%clk 0:00:11.2]} 30...
Rxc1 {[%clk 0:00:19.2]} 31. Nxc1 {[%clk 0:00:11.1]} 31... Qf5+ {[%clk
0:00:19.6]} 32. Ke2 {[%clk 0:00:09.4]} 32... Rc8 {[%clk 0:00:19.1]} 33. Nd3
{[%clk 0:00:08.3]} 33... Bg4+ {[%clk 0:00:17]} 34. Kd2 {[%clk 0:00:08.2]} 34...
Qh5 {[%clk 0:00:15.5]} 35. h4 {[%clk 0:00:07.1]} 35... Bf5 {[%clk 0:00:13.8]}
36. Qxd5 {[%clk 0:00:06.4]} 36... Qg4 {[%clk 0:00:12.7]} 37. Qf3 {[%clk
0:00:06.1]} 37... Qh3 {[%clk 0:00:12.5]} 38. Qg2 {[%clk 0:00:06.5]} 38... Qg4
{[%clk 0:00:12.5]} 39. Qf3 {[%clk 0:00:05.9]} 39... Qh3 {[%clk 0:00:11.1]} 40.
Qg2 {[%clk 0:00:05.9]} 40... Qg4 {[%clk 0:00:10.6]} 41. Qf3 {[%clk 0:00:05.8]}
1/2-1/2

[Event "Late-Titled-Tuesday-Blitz-October-10-2023"]
[Site "Chess.com"]
[Date "2023.10.10"]
[Round "7"]
[White "Rodalquilar"]
[Black "MalyDominator"]
[Result "1-0"]
[WhiteElo "2746"]
[BlackElo "2469"]
[TimeControl "180+1"]
[EndTime "15:12:22 PDT"]
[Termination "Rodalquilar won on time"]

1. d4 {[%clk 0:03:00.9]} 1... Nf6 {[%clk 0:02:55.1]} 2. Nf3 {[%clk 0:03:01.2]}
2... g6 {[%clk 0:02:55.7]} 3. Bf4 {[%clk 0:03:01.6]} 3... Bg7 {[%clk 0:02:54.5]}
4. e3 {[%clk 0:03:02.2]} 4... O-O {[%clk 0:02:54.1]} 5. Be2 {[%clk 0:03:02.7]}
5... d6 {[%clk 0:02:54.6]} 6. O-O {[%clk 0:03:03.2]} 6... b6 {[%clk 0:02:53.7]}
7. h3 {[%clk 0:03:03.2]} 7... Bb7 {[%clk 0:02:53.8]} 8. Bh2 {[%clk 0:03:03.6]}
8... c5 {[%clk 0:02:52.3]} 9. c3 {[%clk 0:03:03.6]} 9... Nbd7 {[%clk 0:02:51.8]}
10. a4 {[%clk 0:03:03.9]} 10... a6 {[%clk 0:02:49.6]} 11. Nbd2 {[%clk
0:03:04.2]} 11... Ra7 {[%clk 0:02:49.5]} 12. Qb3 {[%clk 0:03:03.7]} 12... Qa8
{[%clk 0:02:47.8]} 13. Rfd1 {[%clk 0:03:04]} 13... Ne4 {[%clk 0:02:46.4]} 14.
Nxe4 {[%clk 0:03:04.3]} 14... Bxe4 {[%clk 0:02:46.5]} 15. d5 {[%clk 0:02:56.5]}
15... Rb8 {[%clk 0:02:19.9]} 16. Ng5 {[%clk 0:02:46.9]} 16... Bf5 {[%clk
0:02:05]} 17. g4 {[%clk 0:02:11.4]} 17... Bf6 {[%clk 0:01:50.2]} 18. Nxh7 {[%clk
0:01:54.1]} 18... Kxh7 {[%clk 0:01:43.2]} 19. gxf5 {[%clk 0:01:54.6]} 19... gxf5
{[%clk 0:01:42.8]} 20. Qc2 {[%clk 0:01:54.4]} 20... Rg8+ {[%clk 0:01:34]} 21.
Kf1 {[%clk 0:00:50.1]} 21... e6 {[%clk 0:01:29]} 22. Bf3 {[%clk 0:00:40.2]}
22... Ne5 {[%clk 0:01:27.9]} 23. Bg2 {[%clk 0:00:31.4]} 23... Qf8 {[%clk
0:01:16.7]} 24. Bg3 {[%clk 0:00:16.4]} 24... Nc4 {[%clk 0:01:03.6]} 25. Qe2
{[%clk 0:00:16.2]} 25... exd5 {[%clk 0:00:28.6]} 26. Rxd5 {[%clk 0:00:17.1]}
26... Ne5 {[%clk 0:00:13.8]} 27. Qh5+ {[%clk 0:00:16.9]} 27... Qh6 {[%clk
0:00:13.9]} 28. Qxh6+ {[%clk 0:00:17.4]} 28... Kxh6 {[%clk 0:00:13.7]} 29. Rxd6
{[%clk 0:00:18]} 29... Kg7 {[%clk 0:00:14.1]} 30. Bd5 {[%clk 0:00:11.2]} 30...
Rb8 {[%clk 0:00:08.1]} 31. Rd1 {[%clk 0:00:10.3]} 31... b5 {[%clk 0:00:06.8]}
32. a5 {[%clk 0:00:10.4]} 32... b4 {[%clk 0:00:06.7]} 33. c4 {[%clk 0:00:09.2]}
33... b3 {[%clk 0:00:06.7]} 34. h4 {[%clk 0:00:07.8]} 34... Rb4 {[%clk
0:00:05.9]} 35. h5 {[%clk 0:00:08]} 1-0

[Event "Late-Titled-Tuesday-Blitz-October-10-2023"]
[Site "Chess.com"]
[Date "2023.10.10"]
[Round "7"]
[White "dorpato"]
[Black "emeli_chess"]
[Result "0-1"]
[WhiteElo "2075"]
[BlackElo "2393"]
[TimeControl "180+1"]
[EndTime "15:12:23 PDT"]
[Termination "emeli_chess won by resignation"]

1. e4 {[%clk 0:02:57]} 1... c5 {[%clk 0:02:59.5]} 2. Nc3 {[%clk 0:02:55.9]} 2...
Nc6 {[%clk 0:02:58.8]} 3. g3 {[%clk 0:02:53.8]} 3... g6 {[%clk 0:02:57.3]} 4.
Bg2 {[%clk 0:02:50.9]} 4... Bg7 {[%clk 0:02:57.7]} 5. d3 {[%clk 0:02:49.3]} 5...
e6 {[%clk 0:02:52.6]} 6. Be3 {[%clk 0:02:44.2]} 6... d6 {[%clk 0:02:50.9]} 7.
Qd2 {[%clk 0:02:43]} 7... h5 {[%clk 0:02:50]} 8. h3 {[%clk 0:02:40.4]} 8... Nge7
{[%clk 0:02:49.5]} 9. Nf3 {[%clk 0:02:37.8]} 9... Nd4 {[%clk 0:02:45]} 10. Rb1
{[%clk 0:02:34.7]} 10... Nec6 {[%clk 0:02:42.7]} 11. Ne2 {[%clk 0:02:33.4]}
11... Nxf3+ {[%clk 0:02:37.6]} 12. Bxf3 {[%clk 0:02:33.1]} 12... Rb8 {[%clk
0:02:22.7]} 13. O-O {[%clk 0:02:28.4]} 13... O-O {[%clk 0:02:20.4]} 14. Bh6
{[%clk 0:02:26.8]} 14... b5 {[%clk 0:02:14.2]} 15. Bxg7 {[%clk 0:02:13.1]} 15...
Kxg7 {[%clk 0:02:13.8]} 16. Nf4 {[%clk 0:02:09.1]} 16... b4 {[%clk 0:02:08.5]}
17. Qe3 {[%clk 0:01:58.1]} 17... Nd4 {[%clk 0:02:04.7]} 18. Bd1 {[%clk
0:01:47.2]} 18... a5 {[%clk 0:02:01.7]} 19. f3 {[%clk 0:01:41.3]} 19... a4
{[%clk 0:01:59.7]} 20. g4 {[%clk 0:01:39.4]} 20... hxg4 {[%clk 0:01:56.1]} 21.
fxg4 {[%clk 0:01:32.9]} 21... Bd7 {[%clk 0:01:48.5]} 22. Rc1 {[%clk 0:01:15.8]}
22... a3 {[%clk 0:01:45.7]} 23. b3 {[%clk 0:01:11.7]} 23... Qh4 {[%clk
0:01:35.9]} 24. Ng2 {[%clk 0:01:05.6]} 24... Qe7 {[%clk 0:01:28.3]} 25. h4
{[%clk 0:00:49]} 25... Rh8 {[%clk 0:01:26.5]} 26. g5 {[%clk 0:00:48]} 26... e5
{[%clk 0:01:14]} 27. Qf2 {[%clk 0:00:39.3]} 27... Be6 {[%clk 0:01:12.5]} 28. Bf3
{[%clk 0:00:20.5]} 28... Rbf8 {[%clk 0:01:11.6]} 29. Qe3 {[%clk 0:00:20]} 29...
f6 {[%clk 0:01:10.9]} 30. gxf6+ {[%clk 0:00:19.4]} 30... Qxf6 {[%clk 0:01:05.1]}
31. Rf2 {[%clk 0:00:17.6]} 31... Nxf3+ {[%clk 0:01:02]} 32. Kf1 {[%clk
0:00:15.6]} 32... Bh3 {[%clk 0:00:55.6]} 33. Ke2 {[%clk 0:00:13.3]} 33... Bxg2
{[%clk 0:00:55.8]} 34. Rxg2 {[%clk 0:00:13]} 34... Nd4+ {[%clk 0:00:55.9]} 35.
Kd2 {[%clk 0:00:12.8]} 35... Qf4 {[%clk 0:00:55.5]} 36. Rcg1 {[%clk 0:00:11.9]}
36... Qxe3+ {[%clk 0:00:54.4]} 37. Kxe3 {[%clk 0:00:11.5]} 37... Rf6 {[%clk
0:00:53.9]} 38. Rg4 {[%clk 0:00:10.7]} 38... Rhf8 {[%clk 0:00:50.3]} 39. h5
{[%clk 0:00:10]} 39... Rf3+ {[%clk 0:00:46.1]} 40. Kd2 {[%clk 0:00:08.6]} 40...
Rf2+ {[%clk 0:00:46.4]} 41. Kc1 {[%clk 0:00:07.1]} 41... Rf1+ {[%clk 0:00:46.2]}
42. Rxf1 {[%clk 0:00:06.7]} 42... Rxf1+ {[%clk 0:00:45.6]} 43. Kd2 {[%clk
0:00:07.6]} 43... Rf2+ {[%clk 0:00:44]} 44. Kd1 {[%clk 0:00:05.8]} 44... Rf6
{[%clk 0:00:42.3]} 45. Kd2 {[%clk 0:00:05.2]} 45... Kh6 {[%clk 0:00:41.5]} 46.
hxg6 {[%clk 0:00:04.2]} 46... Rxg6 {[%clk 0:00:41.4]} 47. Rh4+ {[%clk
0:00:04.9]} 47... Kg7 {[%clk 0:00:40.5]} 48. Rh2 {[%clk 0:00:04.5]} 48... Nf3+
{[%clk 0:00:39.6]} 0-1

[Event "Late-Titled-Tuesday-Blitz-October-10-2023"]
[Site "Chess.com"]
[Date "2023.10.10"]
[Round "7"]
[White "Nekoo04"]
[Black "KejJaj"]
[Result "1-0"]
[WhiteElo "2268"]
[BlackElo "2159"]
[TimeControl "180+1"]
[EndTime "15:12:23 PDT"]
[Termination "Nekoo04 won by resignation"]

1. e4 {[%clk 0:03:00.9]} 1... c5 {[%clk 0:02:59.5]} 2. Nf3 {[%clk 0:02:59.6]}
2... d6 {[%clk 0:03:00.1]} 3. d4 {[%clk 0:02:59.1]} 3... cxd4 {[%clk 0:03:01]}
4. Nxd4 {[%clk 0:02:59.6]} 4... Nf6 {[%clk 0:03:01.7]} 5. Nc3 {[%clk 0:02:59.9]}
5... g6 {[%clk 0:03:02.3]} 6. Be3 {[%clk 0:02:59.2]} 6... Bg7 {[%clk 0:03:02.7]}
7. f3 {[%clk 0:02:59]} 7... O-O {[%clk 0:03:03.1]} 8. Qd2 {[%clk 0:02:59.6]}
8... Nc6 {[%clk 0:03:03.5]} 9. Bc4 {[%clk 0:02:59.2]} 9... Nd7 {[%clk 0:03:03]}
10. O-O-O {[%clk 0:02:56]} 10... Nb6 {[%clk 0:03:03.1]} 11. Be2 {[%clk
0:02:55.7]} 11... Ne5 {[%clk 0:02:59.7]} 12. b3 {[%clk 0:02:54.2]} 12... Bd7
{[%clk 0:02:50.9]} 13. h4 {[%clk 0:02:45.8]} 13... Rc8 {[%clk 0:02:48.1]} 14. h5
{[%clk 0:02:42.2]} 14... Qc7 {[%clk 0:02:32.2]} 15. Ncb5 {[%clk 0:01:33.4]}
15... Bxb5 {[%clk 0:02:28.7]} 16. Nxb5 {[%clk 0:01:34.3]} 16... Qd7 {[%clk
0:02:11.9]} 17. Bh6 {[%clk 0:01:32.4]} 17... Nec4 {[%clk 0:01:17.6]} 18. bxc4
{[%clk 0:01:17.1]} 18... Nxc4 {[%clk 0:01:01.3]} 19. Bxc4 {[%clk 0:01:08.6]}
19... Rxc4 {[%clk 0:00:59.6]} 20. Bxg7 {[%clk 0:01:08.3]} 20... Qxb5 {[%clk
0:00:47.9]} 21. Bxf8 {[%clk 0:00:52.6]} 21... Qa4 {[%clk 0:00:36.6]} 22. hxg6
{[%clk 0:00:49.2]} 22... Qa3+ {[%clk 0:00:31.4]} 23. Kb1 {[%clk 0:00:47]} 23...
Rb4+ {[%clk 0:00:30.9]} 24. Qxb4 {[%clk 0:00:46]} 24... Qxb4+ {[%clk 0:00:31.8]}
25. Kc1 {[%clk 0:00:45.6]} 25... Qa3+ {[%clk 0:00:19.9]} 26. Kd2 {[%clk
0:00:44.9]} 26... Qb4+ {[%clk 0:00:19.5]} 27. Kd3 {[%clk 0:00:43.3]} 27... Qb5+
{[%clk 0:00:17.6]} 28. Kd2 {[%clk 0:00:40.6]} 28... fxg6 {[%clk 0:00:13.7]} 29.
Bxe7 {[%clk 0:00:39.2]} 29... Qb4+ {[%clk 0:00:12.6]} 30. Ke2 {[%clk 0:00:37]}
30... Qc4+ {[%clk 0:00:12.3]} 31. Kf2 {[%clk 0:00:36.5]} 31... Qxc2+ {[%clk
0:00:12.1]} 32. Kg3 {[%clk 0:00:34.9]} 32... Qc5 {[%clk 0:00:10.2]} 33. Bxd6
{[%clk 0:00:33.7]} 33... Qg5+ {[%clk 0:00:10.6]} 34. Kf2 {[%clk 0:00:33.4]}
34... Qf6 {[%clk 0:00:10.1]} 35. Rd2 {[%clk 0:00:31.3]} 35... Qe6 {[%clk
0:00:08.7]} 36. Rhd1 {[%clk 0:00:30.8]} 36... Kg7 {[%clk 0:00:08]} 37. Bf4
{[%clk 0:00:30.3]} 37... g5 {[%clk 0:00:06.8]} 38. Bxg5 {[%clk 0:00:28.6]} 38...
Qb6+ {[%clk 0:00:07.3]} 39. Be3 {[%clk 0:00:27.4]} 39... Qc6 {[%clk 0:00:05.6]}
40. Rd7+ {[%clk 0:00:27.5]} 40... Kf8 {[%clk 0:00:05.2]} 41. Rd8+ {[%clk
0:00:26.3]} 41... Ke7 {[%clk 0:00:05.1]} 42. R1d7+ {[%clk 0:00:26.2]} 42... Qxd7
{[%clk 0:00:04.9]} 43. Rxd7+ {[%clk 0:00:26.3]} 43... Kxd7 {[%clk 0:00:05.8]}
44. Bxa7 {[%clk 0:00:26.1]} 1-0